[Event "*** Titled Tuesday Blitz AM"]
[Site "Chess.com"]
[Date "2020.01.07"]
[Round "7"]
[White "David_Paravyan"]
[Black "mishanick"]
[Result "1/2-1/2"]
[WhiteElo "2870"]
[BlackElo "2971"]
[TimeControl "180+2"]
[EndTime "10:36:34 PST"]
[Termination "Game drawn by repetition"]

1. e4 {[%clk 0:03:00.9]} 1... c5 {[%clk 0:03:00.8]} 2. Nf3 {[%clk 0:03:02.5]}
2... d6 {[%clk 0:03:02.5]} 3. d4 {[%clk 0:03:03.7]} 3... Nf6 {[%clk 0:03:03.8]}
4. Bb5+ {[%clk 0:02:59.8]} 4... Bd7 {[%clk 0:03:03.1]} 5. Bxd7+ {[%clk
0:03:00.3]} 5... Qxd7 {[%clk 0:03:04]} 6. dxc5 {[%clk 0:02:45.3]} 6... Nxe4
{[%clk 0:03:04.5]} 7. cxd6 {[%clk 0:02:46.9]} 7... Qxd6 {[%clk 0:03:03.5]} 8.
Qe2 {[%clk 0:02:45.2]} 8... Nf6 {[%clk 0:02:52.1]} 9. Nc3 {[%clk 0:02:46.2]}
9... a6 {[%clk 0:02:33.4]} 10. O-O {[%clk 0:02:44.7]} 10... e6 {[%clk
0:02:34.3]} 11. Ne5 {[%clk 0:02:20.5]} 11... Be7 {[%clk 0:02:31.2]} 12. Rd1
{[%clk 0:02:19.7]} 12... Qb6 {[%clk 0:02:24.3]} 13. a4 {[%clk 0:01:58.8]} 13...
Nc6 {[%clk 0:02:18.2]} 14. Nc4 {[%clk 0:01:47.2]} 14... Qc7 {[%clk 0:02:17]} 15.
g3 {[%clk 0:01:48.2]} 15... Nb4 {[%clk 0:01:24.5]} 16. Bf4 {[%clk 0:01:43.7]}
16... Qc6 {[%clk 0:01:25]} 17. Nd6+ {[%clk 0:01:10.5]} 17... Kf8 {[%clk
0:01:24.1]} 18. Nc4 {[%clk 0:00:56.3]} 18... Nfd5 {[%clk 0:01:19.6]} 19. Nxd5
{[%clk 0:00:24.5]} 19... Nxd5 {[%clk 0:01:21.2]} 20. Ne5 {[%clk 0:00:25.5]}
20... Qc8 {[%clk 0:00:50.3]} 21. Qh5 {[%clk 0:00:23.5]} 21... g6 {[%clk
0:00:41.2]} 22. Qf3 {[%clk 0:00:20.9]} 22... f6 {[%clk 0:00:30.7]} 23. Bh6+
{[%clk 0:00:19.3]} 23... Ke8 {[%clk 0:00:32.3]} 24. c4 {[%clk 0:00:16.1]} 24...
Nb4 {[%clk 0:00:26.8]} 25. Nd7 {[%clk 0:00:17.1]} 25... Kf7 {[%clk 0:00:23.6]}
26. Nb6 {[%clk 0:00:17.9]} 26... Qc7 {[%clk 0:00:23.2]} 27. Nxa8 {[%clk
0:00:18.9]} 27... Rxa8 {[%clk 0:00:24.8]} 28. Rd2 {[%clk 0:00:19.3]} 28... Qxc4
{[%clk 0:00:24.2]} 29. Qxb7 {[%clk 0:00:19]} 29... Re8 {[%clk 0:00:24]} 30. Rad1
{[%clk 0:00:19.1]} 30... Nd5 {[%clk 0:00:25.2]} 31. b3 {[%clk 0:00:16.8]} 31...
Qc8 {[%clk 0:00:26.2]} 32. Qxc8 {[%clk 0:00:12.9]} 32... Rxc8 {[%clk 0:00:28.1]}
33. Rd3 {[%clk 0:00:09.5]} 33... g5 {[%clk 0:00:28.8]} 34. h4 {[%clk 0:00:07.9]}
34... Kg6 {[%clk 0:00:29.9]} 35. hxg5 {[%clk 0:00:09.1]} 35... fxg5 {[%clk
0:00:30.9]} 36. Re1 {[%clk 0:00:10.7]} 36... Rc6 {[%clk 0:00:13.2]} 37. Rxd5
{[%clk 0:00:11.9]} 37... exd5 {[%clk 0:00:15.1]} 38. Rxe7 {[%clk 0:00:13.5]}
38... Kxh6 {[%clk 0:00:16.4]} 39. Rd7 {[%clk 0:00:15.1]} 39... Rb6 {[%clk
0:00:14.1]} 40. Rxd5 {[%clk 0:00:15.2]} 40... Rxb3 {[%clk 0:00:15.5]} 41. Rd6+
{[%clk 0:00:12.7]} 41... Kg7 {[%clk 0:00:17.1]} 42. Rxa6 {[%clk 0:00:12.7]}
42... Ra3 {[%clk 0:00:18.7]} 43. Kg2 {[%clk 0:00:12.9]} 43... h5 {[%clk
0:00:19.7]} 44. a5 {[%clk 0:00:12.5]} 44... h4 {[%clk 0:00:19.8]} 45. gxh4
{[%clk 0:00:13.3]} 45... gxh4 {[%clk 0:00:20.8]} 46. Ra8 {[%clk 0:00:14.1]}
46... h3+ {[%clk 0:00:21]} 47. Kh2 {[%clk 0:00:15.4]} 47... Rf3 {[%clk
0:00:20.5]} 48. a6 {[%clk 0:00:10.7]} 48... Rxf2+ {[%clk 0:00:21.5]} 49. Kxh3
{[%clk 0:00:08.9]} 49... Rf6 {[%clk 0:00:23.1]} 50. Kg4 {[%clk 0:00:09.8]} 50...
Rg6+ {[%clk 0:00:24.4]} 51. Kf5 {[%clk 0:00:11.1]} 51... Rf6+ {[%clk 0:00:25.9]}
52. Ke5 {[%clk 0:00:12.6]} 52... Rb6 {[%clk 0:00:27]} 53. Kd5 {[%clk 0:00:13.9]}
53... Rf6 {[%clk 0:00:28.1]} 54. Ra7+ {[%clk 0:00:13.7]} 54... Kg8 {[%clk
0:00:26.3]} 55. Kc5 {[%clk 0:00:14.3]} 55... Rf5+ {[%clk 0:00:26.9]} 56. Kc6
{[%clk 0:00:15.8]} 56... Rf6+ {[%clk 0:00:28.2]} 57. Kd5 {[%clk 0:00:17.4]}
57... Rb6 {[%clk 0:00:28]} 58. Ra8+ {[%clk 0:00:16.6]} 58... Kg7 {[%clk
0:00:28.6]} 59. Kc4 {[%clk 0:00:14.1]} 59... Rf6 {[%clk 0:00:28.7]} 60. Kd4
{[%clk 0:00:14.9]} 60... Rb6 {[%clk 0:00:29.2]} 61. Ke5 {[%clk 0:00:15.9]} 61...
Rc6 {[%clk 0:00:29.4]} 62. Kd5 {[%clk 0:00:14.2]} 62... Rf6 {[%clk 0:00:29.5]}
63. Kc5 {[%clk 0:00:13.3]} 63... Rf5+ {[%clk 0:00:27.8]} 64. Kd6 {[%clk
0:00:14.7]} 64... Rf6+ {[%clk 0:00:28.6]} 65. Ke5 {[%clk 0:00:15.7]} 65... Rb6
{[%clk 0:00:29.3]} 66. Ra7+ {[%clk 0:00:16.9]} 66... Kg8 {[%clk 0:00:30]} 67.
Kd5 {[%clk 0:00:15.3]} 67... Rf6 {[%clk 0:00:30.6]} 68. Ke4 {[%clk 0:00:13.5]}
68... Rb6 {[%clk 0:00:29.3]} 69. Ra8+ {[%clk 0:00:14.9]} 69... Kg7 {[%clk
0:00:30.2]} 70. a7 {[%clk 0:00:16.2]} 70... Ra6 {[%clk 0:00:31.1]} 71. Kd5
{[%clk 0:00:17.8]} 71... Ra1 {[%clk 0:00:31.9]} 72. Kc6 {[%clk 0:00:19.2]} 72...
Rc1+ {[%clk 0:00:32.3]} 73. Kb6 {[%clk 0:00:20.8]} 73... Rb1+ {[%clk 0:00:33.4]}
74. Kc6 {[%clk 0:00:22.7]} 74... Rc1+ {[%clk 0:00:34.7]} 75. Kb6 {[%clk
0:00:24.6]} 75... Rb1+ {[%clk 0:00:36.1]} 76. Kc6 {[%clk 0:00:26.5]} 76... Rc1+
{[%clk 0:00:36.8]} 1/2-1/2

[Event "*** Titled Tuesday Blitz AM"]
[Site "Chess.com"]
[Date "2020.01.07"]
[Round "7"]
[White "GMCarbone"]
[Black "FMAntonio"]
[Result "0-1"]
[WhiteElo "2262"]
[BlackElo "2496"]
[TimeControl "180+2"]
[EndTime "10:36:35 PST"]
[Termination "FMAntonio won on time"]

1. d4 {[%clk 0:02:42.1]} 1... Nf6 {[%clk 0:02:59.8]} 2. c4 {[%clk 0:02:40.1]}
2... e6 {[%clk 0:03:00.6]} 3. g3 {[%clk 0:02:40.9]} 3... d5 {[%clk 0:02:56.4]}
4. Nf3 {[%clk 0:02:36.1]} 4... dxc4 {[%clk 0:02:56.3]} 5. Bg2 {[%clk 0:02:36.6]}
5... c5 {[%clk 0:02:56.3]} 6. O-O {[%clk 0:02:10.6]} 6... Nc6 {[%clk 0:02:55.9]}
7. Qa4 {[%clk 0:01:40]} 7... Bd7 {[%clk 0:02:55.6]} 8. dxc5 {[%clk 0:01:38.7]}
8... Bxc5 {[%clk 0:02:56.1]} 9. Qxc4 {[%clk 0:01:39.6]} 9... Be7 {[%clk
0:02:57.6]} 10. Nc3 {[%clk 0:01:40.3]} 10... O-O {[%clk 0:02:57.9]} 11. Bf4
{[%clk 0:01:39.6]} 11... Rc8 {[%clk 0:02:59]} 12. Qb3 {[%clk 0:01:39.8]} 12...
Na5 {[%clk 0:02:42]} 13. Qd1 {[%clk 0:01:29.2]} 13... Nc4 {[%clk 0:02:36.4]} 14.
Qb3 {[%clk 0:01:26.5]} 14... Qb6 {[%clk 0:02:33.2]} 15. Qxb6 {[%clk 0:01:21.2]}
15... axb6 {[%clk 0:02:22.4]} 16. b3 {[%clk 0:01:22]} 16... Na3 {[%clk
0:02:15.3]} 17. Rac1 {[%clk 0:01:21.7]} 17... Bc6 {[%clk 0:02:09.9]} 18. Ne5
{[%clk 0:01:21.1]} 18... Bxg2 {[%clk 0:02:09.3]} 19. Kxg2 {[%clk 0:01:22.7]}
19... Bb4 {[%clk 0:02:10.8]} 20. Na4 {[%clk 0:01:22.4]} 20... b5 {[%clk
0:01:48.6]} 21. Nb6 {[%clk 0:01:15.5]} 21... Rcd8 {[%clk 0:01:47.8]} 22. Rc7
{[%clk 0:01:05.9]} 22... Ne8 {[%clk 0:01:14.3]} 23. Rxb7 {[%clk 0:01:02.2]}
23... Nd6 {[%clk 0:01:15.5]} 24. Rc7 {[%clk 0:01:02.1]} 24... Ba5 {[%clk
0:01:13.8]} 25. Rc6 {[%clk 0:00:58.9]} 25... Nf5 {[%clk 0:00:55.1]} 26. Ned7
{[%clk 0:00:46.7]} 26... Rfe8 {[%clk 0:00:55.7]} 27. Bc7 {[%clk 0:00:43.8]}
27... Bxb6 {[%clk 0:00:55]} 28. Nxb6 {[%clk 0:00:39.7]} 28... Rd2 {[%clk
0:00:55.4]} 29. Rfc1 {[%clk 0:00:24.9]} 29... Rxe2 {[%clk 0:00:54.3]} 30. Nd7
{[%clk 0:00:17.5]} 30... Nd4 {[%clk 0:00:46]} 31. Rd6 {[%clk 0:00:15]} 31...
Nac2 {[%clk 0:00:43.4]} 32. Bb6 {[%clk 0:00:15.5]} 32... e5 {[%clk 0:00:39.2]}
33. Nxe5 {[%clk 0:00:14]} 33... Nf5 {[%clk 0:00:27]} 34. Rd8 {[%clk 0:00:08.2]}
34... Rxd8 {[%clk 0:00:20.2]} 35. Bxd8 {[%clk 0:00:10.1]} 35... Ne1+ {[%clk
0:00:21.3]} 36. Kf1 {[%clk 0:00:10.4]} 36... Rxe5 {[%clk 0:00:21.1]} 37. Rxe1
{[%clk 0:00:11.4]} 37... Rxe1+ {[%clk 0:00:14.4]} 38. Kxe1 {[%clk 0:00:13.3]}
38... Kf8 {[%clk 0:00:14.2]} 39. Bb6 {[%clk 0:00:13.8]} 39... Ke7 {[%clk
0:00:15.1]} 40. a4 {[%clk 0:00:14.7]} 40... bxa4 {[%clk 0:00:14.7]} 41. bxa4
{[%clk 0:00:16.6]} 41... Kd6 {[%clk 0:00:16]} 42. a5 {[%clk 0:00:17.3]} 42...
Kc6 {[%clk 0:00:17.2]} 43. Ke2 {[%clk 0:00:12]} 43... Nd6 {[%clk 0:00:17.9]} 44.
Bd8 {[%clk 0:00:11.7]} 44... Nb7 {[%clk 0:00:17.8]} 45. Bb6 {[%clk 0:00:12.8]}
45... Kb5 {[%clk 0:00:18.4]} 46. Ke3 {[%clk 0:00:13.4]} 46... Nxa5 {[%clk
0:00:15.5]} 47. Bxa5 {[%clk 0:00:15.3]} 47... Kxa5 {[%clk 0:00:17.2]} 48. Ke4
{[%clk 0:00:17.1]} 48... Kb6 {[%clk 0:00:17.9]} 49. Ke5 {[%clk 0:00:17.7]} 49...
Kc6 {[%clk 0:00:18.3]} 50. g4 {[%clk 0:00:18.8]} 50... Kd7 {[%clk 0:00:17.1]}
51. g5 {[%clk 0:00:20]} 51... Ke7 {[%clk 0:00:17.5]} 52. h4 {[%clk 0:00:19.2]}
52... Kd7 {[%clk 0:00:18.3]} 53. h5 {[%clk 0:00:18.9]} 53... Ke7 {[%clk
0:00:19.2]} 54. f4 {[%clk 0:00:19.9]} 54... Kd7 {[%clk 0:00:16.3]} 55. f5 {[%clk
0:00:20.5]} 55... Ke7 {[%clk 0:00:04.8]} 56. Kd5 {[%clk 0:00:10.1]} 56... Kd7
{[%clk 0:00:04.2]} 57. g6 {[%clk 0:00:06.9]} 57... fxg6 {[%clk 0:00:05.1]} 58.
fxg6 {[%clk 0:00:06.1]} 58... h6 {[%clk 0:00:04.8]} 59. Ke5 {[%clk 0:00:06.5]}
59... Ke7 {[%clk 0:00:06.1]} 0-1

[Event "*** Titled Tuesday Blitz AM"]
[Site "Chess.com"]
[Date "2020.01.07"]
[Round "7"]
[White "BocharovD"]
[Black "MITerryble"]
[Result "1-0"]
[WhiteElo "2781"]
[BlackElo "2935"]
[TimeControl "180+2"]
[EndTime "10:37:00 PST"]
[Termination "BocharovD won by resignation"]

1. c4 {[%clk 0:02:58.6]} 1... e5 {[%clk 0:03:00.9]} 2. g3 {[%clk 0:02:56.6]}
2... Nf6 {[%clk 0:03:01.6]} 3. Bg2 {[%clk 0:02:54.2]} 3... c6 {[%clk 0:03:03]}
4. d4 {[%clk 0:02:54.4]} 4... Bb4+ {[%clk 0:03:03.6]} 5. Bd2 {[%clk 0:02:53.4]}
5... Bxd2+ {[%clk 0:03:04.8]} 6. Qxd2 {[%clk 0:02:50.6]} 6... d6 {[%clk
0:03:06.2]} 7. Nc3 {[%clk 0:02:51.1]} 7... O-O {[%clk 0:03:06.9]} 8. e3 {[%clk
0:02:51.5]} 8... Be6 {[%clk 0:03:06.4]} 9. b3 {[%clk 0:02:49.7]} 9... exd4
{[%clk 0:03:05.6]} 10. Qxd4 {[%clk 0:02:50.4]} 10... Qa5 {[%clk 0:03:02.5]} 11.
Ne2 {[%clk 0:02:46.5]} 11... d5 {[%clk 0:03:03.3]} 12. cxd5 {[%clk 0:02:46.8]}
12... Bxd5 {[%clk 0:03:00.2]} 13. e4 {[%clk 0:02:40]} 13... Be6 {[%clk
0:02:52.7]} 14. O-O {[%clk 0:02:32.1]} 14... Rd8 {[%clk 0:02:53.3]} 15. Qe3
{[%clk 0:02:32.3]} 15... Ng4 {[%clk 0:02:51.4]} 16. Qf4 {[%clk 0:02:31.7]} 16...
Nd7 {[%clk 0:02:36.2]} 17. h3 {[%clk 0:02:29.6]} 17... Ngf6 {[%clk 0:01:56.2]}
18. Rfd1 {[%clk 0:02:25.3]} 18... h6 {[%clk 0:01:37.1]} 19. Qe3 {[%clk
0:02:19.6]} 19... Qc5 {[%clk 0:01:23.2]} 20. Nd4 {[%clk 0:02:18.5]} 20... Re8
{[%clk 0:01:17.7]} 21. Rac1 {[%clk 0:02:16.6]} 21... Qa5 {[%clk 0:01:15]} 22. f4
{[%clk 0:02:13.5]} 22... Nb6 {[%clk 0:01:08.1]} 23. f5 {[%clk 0:02:01.2]} 23...
Bxf5 {[%clk 0:01:04.5]} 24. Nxf5 {[%clk 0:02:01.1]} 24... Qxf5 {[%clk 0:00:57]}
25. Qxb6 {[%clk 0:01:59.7]} 25... Qxh3 {[%clk 0:00:56.5]} 26. Bxh3 {[%clk
0:01:35.1]} 26... axb6 {[%clk 0:00:57.4]} 27. Bg2 {[%clk 0:01:25.8]} 27... b5
{[%clk 0:00:58.7]} 28. Rd4 {[%clk 0:01:26]} 28... Re5 {[%clk 0:00:52.4]} 29. Bf3
{[%clk 0:01:22.1]} 29... Kf8 {[%clk 0:00:51.5]} 30. a4 {[%clk 0:01:17.9]} 30...
bxa4 {[%clk 0:00:52]} 31. bxa4 {[%clk 0:01:10.4]} 31... Rc5 {[%clk 0:00:52.9]}
32. Kf2 {[%clk 0:01:09]} 32... Ke8 {[%clk 0:00:51.3]} 33. Ke3 {[%clk 0:01:08.8]}
33... Nd7 {[%clk 0:00:51.8]} 34. Kd2 {[%clk 0:01:07.7]} 34... Rg5 {[%clk
0:00:48.3]} 35. Rg1 {[%clk 0:01:02.1]} 35... Nc5 {[%clk 0:00:46.5]} 36. Bd1
{[%clk 0:01:02.3]} 36... h5 {[%clk 0:00:41.8]} 37. Ke3 {[%clk 0:01:00.5]} 37...
g6 {[%clk 0:00:41.6]} 38. Rb4 {[%clk 0:00:59.2]} 38... Re5 {[%clk 0:00:41.1]}
39. Kd4 {[%clk 0:00:57]} 39... f6 {[%clk 0:00:31.8]} 40. Bc2 {[%clk 0:00:56.9]}
40... Ke7 {[%clk 0:00:14.7]} 41. Nd5+ {[%clk 0:00:46.9]} 41... cxd5 {[%clk
0:00:14.4]} 42. Kxc5 {[%clk 0:00:48.1]} 42... dxe4+ {[%clk 0:00:15.9]} 43. Kd4
{[%clk 0:00:48.7]} 43... Rd8+ {[%clk 0:00:12.9]} 44. Ke3 {[%clk 0:00:49.1]}
44... f5 {[%clk 0:00:14.3]} 45. Rxb7+ {[%clk 0:00:47.7]} 45... Kf6 {[%clk
0:00:15.7]} 46. Rd1 {[%clk 0:00:44.5]} 46... Rc8 {[%clk 0:00:15.5]} 47. Rd6+
{[%clk 0:00:36.1]} 47... Re6 {[%clk 0:00:16]} 48. Rxe6+ {[%clk 0:00:35.4]} 48...
Kxe6 {[%clk 0:00:17.9]} 49. Bb3+ {[%clk 0:00:36.6]} 49... Kf6 {[%clk 0:00:19.3]}
50. Rb6+ {[%clk 0:00:37.5]} 50... Kg5 {[%clk 0:00:15.3]} 51. Bf7 {[%clk
0:00:38.1]} 51... Rc3+ {[%clk 0:00:16.4]} 52. Kf2 {[%clk 0:00:38.2]} 52... Rc2+
{[%clk 0:00:15.5]} 53. Ke3 {[%clk 0:00:39.4]} 53... Rc3+ {[%clk 0:00:16.7]} 54.
Ke2 {[%clk 0:00:36.4]} 54... Kg4 {[%clk 0:00:05.7]} 55. Rxg6+ {[%clk 0:00:37.4]}
55... Kh3 {[%clk 0:00:07.3]} 56. Be6 {[%clk 0:00:36.8]} 56... Ra3 {[%clk
0:00:04]} 57. Bxf5+ {[%clk 0:00:36.4]} 57... Kh2 {[%clk 0:00:05.9]} 58. Bd7
{[%clk 0:00:35.6]} 58... Kg2 {[%clk 0:00:03.8]} 59. Bc6 {[%clk 0:00:35.8]} 59...
Kh2 {[%clk 0:00:04.6]} 60. Rg5 {[%clk 0:00:34.6]} 60... Kh3 {[%clk 0:00:05.7]}
61. Rxh5+ {[%clk 0:00:34.8]} 61... Kxg3 {[%clk 0:00:07]} 62. Re5 {[%clk
0:00:35.6]} 62... Rc3 {[%clk 0:00:04.3]} 63. Bb7 {[%clk 0:00:36.4]} 63... Rb3
{[%clk 0:00:04.4]} 64. Rb5 {[%clk 0:00:33.2]} 64... Ra3 {[%clk 0:00:05.2]} 65.
a5 {[%clk 0:00:34.6]} 65... Kf4 {[%clk 0:00:06.6]} 66. a6 {[%clk 0:00:34.7]}
66... Ra2+ {[%clk 0:00:07.5]} 67. Kd1 {[%clk 0:00:35.8]} 67... e3 {[%clk
0:00:05.3]} 68. Rb4+ {[%clk 0:00:35.1]} 68... Kg3 {[%clk 0:00:06.6]} 69. Rb6
{[%clk 0:00:36]} 69... Kf2 {[%clk 0:00:03.8]} 70. Rf6+ {[%clk 0:00:36.5]} 70...
Kg1 {[%clk 0:00:04.3]} 71. Ke1 {[%clk 0:00:36.8]} 71... Kh2 {[%clk 0:00:03.2]}
72. Rg6 {[%clk 0:00:37.3]} 72... Kh3 {[%clk 0:00:04.3]} 73. Re6 {[%clk
0:00:37.4]} 73... Ra3 {[%clk 0:00:04.9]} 74. Ke2 {[%clk 0:00:37.8]} 74... Kg4
{[%clk 0:00:06.8]} 75. Rxe3 {[%clk 0:00:38.1]} 75... Rxa6 {[%clk 0:00:08.1]} 76.
Bxa6 {[%clk 0:00:38.5]} 1-0

[Event "*** Titled Tuesday Blitz AM"]
[Site "Chess.com"]
[Date "2020.01.07"]
[Round "8"]
[White "mazetofonias"]
[Black "nouma78"]
[Result "1-0"]
[WhiteElo "2696"]
[BlackElo "2526"]
[TimeControl "180+2"]
[EndTime "10:44:25 PST"]
[Termination "mazetofonias won by resignation"]

1. d4 {[%clk 0:03:01.9]} 1... Nf6 {[%clk 0:03:00.2]} 2. Nf3 {[%clk 0:03:01.9]}
2... g6 {[%clk 0:03:00.9]} 3. Bg5 {[%clk 0:03:03.4]} 3... Bg7 {[%clk 0:03:01.8]}
4. Nbd2 {[%clk 0:03:05]} 4... c5 {[%clk 0:03:02.9]} 5. c3 {[%clk 0:02:58.9]}
5... cxd4 {[%clk 0:03:03.4]} 6. cxd4 {[%clk 0:03:00.8]} 6... d5 {[%clk
0:03:04.7]} 7. e3 {[%clk 0:03:02]} 7... O-O {[%clk 0:03:05.6]} 8. Be2 {[%clk
0:03:03.6]} 8... Nc6 {[%clk 0:03:06.4]} 9. O-O {[%clk 0:03:05.1]} 9... Bg4
{[%clk 0:03:07.3]} 10. h3 {[%clk 0:03:05.1]} 10... Bxf3 {[%clk 0:03:08.4]} 11.
Nxf3 {[%clk 0:03:06.6]} 11... e6 {[%clk 0:03:08.9]} 12. Bf4 {[%clk 0:03:07.5]}
12... Qe7 {[%clk 0:03:06.6]} 13. Qb3 {[%clk 0:03:08.1]} 13... Rfc8 {[%clk
0:03:07.3]} 14. Rac1 {[%clk 0:03:08.7]} 14... Ne4 {[%clk 0:03:04.8]} 15. Bd3
{[%clk 0:02:58.7]} 15... Qb4 {[%clk 0:02:25.7]} 16. Rxc6 {[%clk 0:02:49.5]} 1-0

[Event "*** Titled Tuesday Blitz AM"]
[Site "Chess.com"]
[Date "2020.01.07"]
[Round "8"]
[White "cstevens1"]
[Black "narutosmith"]
[Result "0-1"]
[WhiteElo "2605"]
[BlackElo "2262"]
[TimeControl "180+2"]
[EndTime "10:45:55 PST"]
[Termination "narutosmith won by resignation"]

1. Nf3 {[%clk 0:03:01.9]} 1... c5 {[%clk 0:03:00.2]} 2. e4 {[%clk 0:03:02.5]}
2... e6 {[%clk 0:03:00.5]} 3. d4 {[%clk 0:03:03.4]} 3... cxd4 {[%clk 0:03:01.1]}
4. Nxd4 {[%clk 0:03:05.3]} 4... a6 {[%clk 0:03:01.2]} 5. Bd3 {[%clk 0:03:06.3]}
5... Nf6 {[%clk 0:02:56.8]} 6. Qe2 {[%clk 0:03:06.8]} 6... d6 {[%clk 0:02:56.3]}
7. f4 {[%clk 0:03:07.3]} 7... Qc7 {[%clk 0:02:52.4]} 8. Be3 {[%clk 0:03:08]}
8... g6 {[%clk 0:02:51.8]} 9. Nd2 {[%clk 0:03:08.9]} 9... Bg7 {[%clk 0:02:53.2]}
10. O-O-O {[%clk 0:03:08.9]} 10... O-O {[%clk 0:02:53.4]} 11. Kb1 {[%clk
0:03:10.5]} 11... Nbd7 {[%clk 0:02:46.6]} 12. g4 {[%clk 0:03:06.4]} 12... e5
{[%clk 0:02:43.1]} 13. Nf5 {[%clk 0:03:06.1]} 13... gxf5 {[%clk 0:02:41.8]} 14.
exf5 {[%clk 0:02:51.2]} 14... exf4 {[%clk 0:02:25.3]} 15. Bd4 {[%clk 0:02:52.1]}
15... Re8 {[%clk 0:02:24.5]} 16. Qg2 {[%clk 0:02:48.9]} 16... Qc6 {[%clk
0:02:06.9]} 17. Nf3 {[%clk 0:02:45.1]} 17... Ne5 {[%clk 0:02:03.7]} 18. Bxe5
{[%clk 0:02:43.8]} 18... dxe5 {[%clk 0:02:04.1]} 19. g5 {[%clk 0:02:45]} 19...
Nd5 {[%clk 0:01:56.9]} 20. Be4 {[%clk 0:02:36.9]} 20... Nc3+ {[%clk 0:01:50.7]}
21. bxc3 {[%clk 0:02:38]} 21... Qxe4 {[%clk 0:01:51.7]} 22. f6 {[%clk
0:02:39.9]} 22... Bf8 {[%clk 0:01:50]} 23. Rhe1 {[%clk 0:02:40.8]} 23... Qc6
{[%clk 0:01:46]} 24. Qd2 {[%clk 0:02:38.3]} 24... Bf5 {[%clk 0:01:42.9]} 25.
Nxe5 {[%clk 0:02:37.8]} 25... Qb5+ {[%clk 0:01:42.8]} 26. Ka1 {[%clk 0:02:39]}
26... Rxe5 {[%clk 0:01:42.8]} 0-1

[Event "*** Titled Tuesday Blitz AM"]
[Site "Chess.com"]
[Date "2020.01.07"]
[Round "8"]
[White "LogoCzar"]
[Black "goldenspine"]
[Result "0-1"]
[WhiteElo "2382"]
[BlackElo "2330"]
[TimeControl "180+2"]
[EndTime "10:46:36 PST"]
[Termination "goldenspine won by resignation"]

1. e4 {[%clk 0:03:01.9]} 1... c6 {[%clk 0:03:00.7]} 2. d4 {[%clk 0:03:02.6]}
2... d5 {[%clk 0:03:02.3]} 3. e5 {[%clk 0:03:04.1]} 3... Bf5 {[%clk 0:03:02.9]}
4. h4 {[%clk 0:03:05.3]} 4... h5 {[%clk 0:03:03.5]} 5. Bd3 {[%clk 0:03:06.3]}
5... Bxd3 {[%clk 0:02:59.8]} 6. Qxd3 {[%clk 0:03:08.2]} 6... e6 {[%clk
0:03:01.2]} 7. Bg5 {[%clk 0:03:09.3]} 7... Qb6 {[%clk 0:02:59.6]} 8. Nd2 {[%clk
0:03:09.9]} 8... Nd7 {[%clk 0:02:58.5]} 9. Ngf3 {[%clk 0:03:10]} 9... Ne7 {[%clk
0:02:45.2]} 10. O-O {[%clk 0:03:10.3]} 10... f6 {[%clk 0:02:42.8]} 11. Bf4
{[%clk 0:03:08.6]} 11... O-O-O {[%clk 0:01:45.6]} 12. c4 {[%clk 0:03:09.4]}
12... Qa6 {[%clk 0:01:14.6]} 13. Qc3 {[%clk 0:03:03.2]} 13... dxc4 {[%clk
0:01:13.7]} 14. Nxc4 {[%clk 0:03:04]} 14... Nd5 {[%clk 0:01:14.7]} 15. Qc1
{[%clk 0:02:50]} 15... Nxf4 {[%clk 0:01:14.5]} 16. Qxf4 {[%clk 0:02:49.6]} 16...
Qxc4 {[%clk 0:01:15.2]} 17. Rfc1 {[%clk 0:02:50]} 17... Qd5 {[%clk 0:01:12.1]}
18. b4 {[%clk 0:02:45.3]} 18... Bxb4 {[%clk 0:01:08.5]} 19. Rab1 {[%clk
0:02:45.7]} 19... Ba5 {[%clk 0:01:09.4]} 20. Rb3 {[%clk 0:02:34.3]} 20... fxe5
{[%clk 0:01:10.2]} 21. Nxe5 {[%clk 0:02:34.9]} 21... Nxe5 {[%clk 0:01:09.4]} 22.
dxe5 {[%clk 0:02:33.9]} 22... Bd2 {[%clk 0:01:10.5]} 23. Qf7 {[%clk 0:02:24.8]}
23... Rd7 {[%clk 0:01:06.4]} 0-1

[Event "*** Titled Tuesday Blitz AM"]
[Site "Chess.com"]
[Date "2020.01.07"]
[Round "8"]
[White "Quiet_Desperation"]
[Black "LonesomeGeorge1"]
[Result "0-1"]
[WhiteElo "2388"]
[BlackElo "2305"]
[TimeControl "180+2"]
[EndTime "10:46:37 PST"]
[Termination "LonesomeGeorge1 won by resignation"]

1. e4 {[%clk 0:03:01.9]} 1... c6 {[%clk 0:02:22]} 2. d4 {[%clk 0:02:53.6]} 2...
g6 {[%clk 0:02:23]} 3. Nc3 {[%clk 0:02:53.7]} 3... d5 {[%clk 0:02:24.9]} 4. Nf3
{[%clk 0:02:48.9]} 4... dxe4 {[%clk 0:02:24.3]} 5. Nxe4 {[%clk 0:02:50.8]} 5...
Bg7 {[%clk 0:02:25.9]} 6. Be3 {[%clk 0:02:49.7]} 6... Nf6 {[%clk 0:02:26.4]} 7.
Nxf6+ {[%clk 0:02:50.6]} 7... exf6 {[%clk 0:02:28.3]} 8. Qd2 {[%clk 0:02:50.8]}
8... O-O {[%clk 0:02:29.4]} 9. O-O-O {[%clk 0:02:50.3]} 9... Be6 {[%clk
0:02:31]} 10. Kb1 {[%clk 0:02:50.6]} 10... a5 {[%clk 0:02:28.1]} 11. h4 {[%clk
0:02:50.3]} 11... h5 {[%clk 0:02:27.9]} 12. Be2 {[%clk 0:02:50.7]} 12... Na6
{[%clk 0:02:28.5]} 13. Ne1 {[%clk 0:02:33.9]} 13... b5 {[%clk 0:02:27.2]} 14. g4
{[%clk 0:02:33.2]} 14... hxg4 {[%clk 0:02:27]} 15. Bh6 {[%clk 0:02:24.2]} 15...
Qd5 {[%clk 0:02:27.3]} 16. b3 {[%clk 0:02:18.8]} 16... a4 {[%clk 0:02:23.7]} 17.
Bxg7 {[%clk 0:02:18.8]} 17... Kxg7 {[%clk 0:02:24.6]} 18. h5 {[%clk 0:02:16.5]}
18... gxh5 {[%clk 0:02:22.1]} 19. Nd3 {[%clk 0:02:13.1]} 19... axb3 {[%clk
0:02:20.9]} 20. Nf4 {[%clk 0:02:01.4]} 20... bxc2+ {[%clk 0:02:08.5]} 21. Qxc2
{[%clk 0:01:54.7]} 21... Nb4 {[%clk 0:02:09.2]} 22. Qd2 {[%clk 0:01:49.5]} 22...
Qf5+ {[%clk 0:01:43]} 23. Bd3 {[%clk 0:01:45.4]} 23... Nxd3 {[%clk 0:01:43.1]}
24. Nxd3 {[%clk 0:01:46.4]} 0-1